lending/lending_fUSD_20251124
["ID","MTS","AMOUNT","RATE_DAILY","PERIOD"]
[394829922,1764004240129,-95.06332467,0.00016275,2]
[394829923,1764004240140,-55.93667533,0.00016275,2]
[394829924,1764004240150,-150.0,0.00016282,2]
[394829925,1764004240160,-6019.97814687,0.00016285,2]
[394829926,1764004240171,-4024.0199998,0.00016285,2]
[394829927,1764004240198,-24120.02498942,0.00016285,2]
[394829928,1764004240207,-1040.931,0.00016285,2]
[394829929,1764004240216,-167.642,0.00016285,2]
[394829930,1764004240225,-1000.0,0.00016286,2]
[394829931,1764004240235,-1707.05659453,0.00016286,2]
[394829932,1764004240253,-1060.52141082,0.00016286,2]
[394829933,1764004240285,-319.8131378,0.00016286,2]
[394829934,1764004240295,-542.25651432,0.00016286,2]
[394829936,1764004240306,-1303.70103278,0.00016286,2]
[394829937,1764004240319,-4954.76436267,0.00016286,2]
[394829939,1764004240330,-1495.78179057,0.00016286,2]
[394829941,1764004240341,-614.12919889,0.00016286,2]
[394830283,1764004243616,-580.0,0.00016286,2]
[394830285,1764004243628,-276.76443914,0.00016286,2]
[394830287,1764004243639,-2221.173,0.00016286,2]
[394830289,1764004243650,-879.0997796,0.00016286,2]
[394830292,1764004243661,-263.93476723,0.00016286,2]
[394830295,1764004243683,-1421.13915922,0.00016286,2]
[394830297,1764004243694,-9053.65581243,0.00016286,2]
[394830299,1764004243703,-235.84418757,0.00016286,2]
[394830301,1764004243714,-1801.10243449,0.00016286,2]
[394830303,1764004243726,-492.91954602,0.00016286,2]
[394830306,1764004243736,-2800.78473192,0.00016286,2]
[394830308,1764004243746,-280.0,0.00016286,2]
[394830309,1764004243755,-800.79694797,0.00016286,2]
[394830312,1764004243764,-2306.64782812,0.00016286,2]
[394830313,1764004243774,-2896.93608307,0.00016286,2]
[394830316,1764004243784,-202.58056884,0.00016286,2]
[394830318,1764004243794,-150.0,0.000163,2]
[394830320,1764004243803,-313.36840556,0.000163,2]
[394830322,1764004243812,-151.0,0.0001633,2]
[394830324,1764004243822,-150.0,0.0001635,2]
[394830326,1764004243831,-150.0,0.00016364,2]
[394830328,1764004243840,-150.0,0.00016364,2]
[394830330,1764004243853,-150.0,0.00016364,2]
[394830331,1764004243862,-203.08486534,0.00016376,2]
[394830333,1764004243871,-200.0,0.00016376,2]
[394830336,1764004243883,-247.89835245,0.00016376,2]
[394830337,1764004243893,-500.0,0.00016376,2]
[394830339,1764004243902,-200.0,0.00016376,2]
[394830341,1764004243911,-202.46,0.00016376,3]
[394830343,1764004243921,-9026.09206472,0.00016385,2]
[394830346,1764004243933,-3023.25537364,0.00016385,2]
[394830348,1764004243942,-500.0,0.00016385,2]
[394830350,1764004243951,-500.0,0.00016385,2]
[394830352,1764004243961,-500.0,0.00016385,2]
[394830354,1764004243970,-500.0,0.00016385,2]
[394830356,1764004243979,-507.14205343,0.00016385,2]
[394830358,1764004243999,-679.35,0.00016385,2]
[394830360,1764004244010,-679.35,0.00016385,2]
[394830363,1764004244020,-679.35,0.00016385,2]
[394830364,1764004244030,-500.0,0.00016385,2]
[394830366,1764004244039,-500.0,0.00016385,2]
[394830368,1764004244049,-500.0,0.00016385,2]
[394830370,1764004244059,-500.0,0.00016385,2]
[394830372,1764004244069,-500.0,0.00016385,2]
[394830375,1764004244079,-507.11288139,0.00016385,2]
[394830377,1764004244088,-779.09,0.00016385,2]
[394830379,1764004244099,-500.0,0.00016385,2]
[394830381,1764004244108,-372.59803635,0.00016385,2]
[394830383,1764004244117,-151.0,0.00016385,2]
[394830385,1764004244127,-150.0,0.000164,2]
[394830387,1764004244137,-150.0,0.00016425,2]
[394830388,1764004244147,-3941.55,0.00016438,2]
[394830390,1764004244157,-151.0,0.0001644,2]
[394830392,1764004244167,-150.0,0.00016445,2]
[394830395,1764004244177,-2306.64782812,0.00016465,2]
[394830396,1764004244187,-2896.93608304,0.00016465,2]
[394830399,1764004244197,-12243.33,0.00016493,2]
[394830401,1764004244208,-150.0,0.000165,2]
[394830403,1764004244218,-150.0,0.000165,2]
[394830405,1764004244228,-313.36840556,0.000165,2]
[394830407,1764004244237,-800.79694795,0.00016517,2]
[394830409,1764004244247,-150.0,0.00016527,2]
[394830411,1764004244256,-150.0,0.00016527,2]
[394830413,1764004244265,-150.0,0.00016527,2]
[394830415,1764004244275,-151.0,0.00016544,2]
[394830416,1764004244284,-29198.22343014,0.00016547,2]
[394830418,1764004244294,-150.0,0.0001656,2]
[394830421,1764004244305,-362.02646144,0.00016586,2]
[394830423,1764004244315,-150.0,0.000166,2]
[394830425,1764004244324,-150.0,0.00016609,2]
[394830427,1764004244333,-2306.64782812,0.00016645,2]
[394830429,1764004244343,-2896.93608304,0.00016645,2]
[394830431,1764004244357,-150.0,0.0001665,2]
[394830433,1764004244366,-150.0,0.0001665,2]
[394830435,1764004244377,-779.09,0.00016659,2]
[394830437,1764004244388,-500.01,0.0001666,2]
[394830439,1764004244398,-150.0,0.00016691,2]
[394830441,1764004244408,-150.0,0.00016691,2]
[394830444,1764004244417,-150.0,0.00016691,2]
[394830446,1764004244427,-150.0,0.000167,2]
[394830448,1764004244437,-313.36840556,0.000167,2]
[394830450,1764004244447,-1000.0,0.00016721,2]
[394830452,1764004244458,-919.63831049,0.00016721,2]
[394830454,1764004244468,-803.22782121,0.00016721,2]
[394830456,1764004244477,-1011.01960502,0.00016721,2]
[394830458,1764004244487,-800.79694795,0.00016747,2]
[394830460,1764004244496,-150.0,0.00016773,2]
[394830462,1764004244506,-300.0,0.00016779,2]
[394830464,1764004244519,-150.0,0.000168,2]
[394830466,1764004244529,-150.0,0.000168,2]
[394830468,1764004244539,-150.0,0.000168,2]
[394830471,1764004244555,-2306.64782812,0.00016824,2]
[394830473,1764004244565,-2896.93608304,0.00016824,2]
[394830475,1764004244575,-150.0,0.00016855,2]
[394830477,1764004244586,-150.0,0.00016855,2]
[394830479,1764004244595,-150.0,0.00016855,2]
[394830481,1764004244606,-150.0,0.00016875,2]
[394830483,1764004244615,-150.0,0.000169,2]
[394830485,1764004244625,-313.36840556,0.000169,2]
[394830487,1764004244637,-150.0,0.0001692,2]
[394830489,1764004244647,-203.26540095,0.00016924,2]
[394830491,1764004244656,-500.0,0.00016924,2]
[394830493,1764004244666,-202.6611322,0.00016924,2]
[394830495,1764004244676,-779.09,0.00016933,2]
[394830497,1764004244686,-150.0,0.00016936,2]
[394830499,1764004244696,-150.0,0.0001695,2]
[394830501,1764004244705,-800.79694795,0.00016978,2]
[394830503,1764004244715,-69086.44,0.00016986,2]
[394830505,1764004244725,-150.0,0.00017,2]
[394830507,1764004244735,-2306.64782812,0.00017003,2]
[394830509,1764004244745,-2896.93608304,0.00017003,2]
[394830512,1764004244758,-150.0,0.00017018,2]
[394830514,1764004244768,-150.0,0.00017018,2]
[394830516,1764004244777,-150.0,0.00017018,2]
[394830518,1764004244787,-500.0,0.00017099,2]
[394830520,1764004244796,-500.0,0.00017099,2]
[394830522,1764004244809,-500.0,0.00017099,2]
[394830524,1764004244819,-500.0,0.00017099,2]
[394830526,1764004244828,-500.0,0.00017099,2]
[394830528,1764004244838,-500.0,0.00017099,2]
[394830530,1764004244848,-500.0,0.00017099,2]
[394830532,1764004244858,-500.0,0.00017099,2]
[394830535,1764004244868,-500.0,0.00017099,2]
[394830537,1764004244878,-488.3323414,0.00017099,2]
[394830539,1764004244889,-500.0,0.00017099,2]
[394830541,1764004244899,-500.0,0.00017099,2]
[394830543,1764004244909,-500.0,0.00017099,2]
[394830545,1764004244919,-500.0,0.00017099,2]
[394830547,1764004244929,-500.0,0.00017099,2]
[394830549,1764004244938,-500.0,0.00017099,2]
[394830551,1764004244952,-500.0,0.00017099,2]
[394830553,1764004244962,-500.0,0.00017099,2]
[394830556,1764004244973,-500.0,0.00017099,2]
[394830558,1764004244984,-500.0,0.00017099,2]
[394830560,1764004244993,-500.0,0.00017099,2]
[394830562,1764004245003,-578.20924308,0.00017099,2]
[394830564,1764004245012,-500.0,0.00017099,2]
[394830566,1764004245022,-500.0,0.00017099,2]
[394830568,1764004245031,-500.0,0.00017099,2]
[394830570,1764004245041,-500.0,0.00017099,2]
[394830572,1764004245050,-2000.0,0.00017099,2]
[394830574,1764004245059,-871.46759197,0.00017099,2]
[394830576,1764004245069,-150.0,0.000171,2]
[394830577,1764004245078,-150.0,0.000171,2]
[394830579,1764004245088,-150.0,0.000171,2]
[394830581,1764004245097,-150.0,0.000171,2]
[394830583,1764004245107,-150.0,0.000171,2]
[394830585,1764004245118,-313.36840556,0.000171,2]
[394830588,1764004245128,-6066.0,0.00017117,2]
[394830590,1764004245140,-150.0,0.00017182,2]
[394830592,1764004245155,-150.0,0.00017182,2]
[394830594,1764004245165,-150.0,0.00017182,2]
[394830596,1764004245175,-2306.64782812,0.00017183,2]
[394830598,1764004245185,-2896.93608304,0.00017183,2]
[394830600,1764004245195,-150.0,0.000172,2]
[394830602,1764004245204,-779.09,0.00017207,2]
[394830604,1764004245215,-800.79694795,0.00017208,2]
[394830606,1764004245224,-300.0,0.00017222,2]
[394830608,1764004245234,-150.0,0.0001725,2]
[394830611,1764004245243,-150.0,0.00017264,2]
[394830613,1764004245252,-1500.0,0.00017268,2]
[394830615,1764004245262,-150.0,0.0001728,2]
[394830617,1764004245271,-150.0,0.000173,2]
[394830619,1764004245282,-313.36840556,0.000173,2]
[394830621,1764004245291,-935.0,0.000173,2]
[394830623,1764004245301,-150.0,0.00017325,2]
[394830625,1764004245310,-150.0,0.00017345,2]
[394830627,1764004245320,-150.0,0.00017345,2]
[394830629,1764004245329,-150.0,0.00017345,2]
[394830631,1764004245340,-2306.64782812,0.00017362,2]
[394830633,1764004245350,-2896.93608304,0.00017362,2]
[394830635,1764004245359,-150.0,0.000174,2]
[394830637,1764004245369,-150.0,0.000174,2]
[394830639,1764004245378,-150.0,0.000174,2]
[394830641,1764004245388,-195.0,0.0001742,2]
[394830643,1764004245398,-150.10213981,0.0001742,2]
[394830645,1764004245408,-250.0,0.0001742,2]
[394830647,1764004245418,-150.0,0.00017427,2]
[394830649,1764004245427,-150.10776003,0.00017434,3]
[394830651,1764004245441,-195.0,0.00017434,2]
[394830653,1764004245450,-800.79694795,0.00017439,2]
[394830655,1764004245460,-2500.0,0.0001746,2]
[394830658,1764004245470,-2500.0,0.0001746,2]
[394830660,1764004245479,-822.0,0.00017465,2]
[394830677,1764004245642,-1601.0,0.00017465,2]
[394830679,1764004245652,-1256.0,0.00017465,2]
[394830681,1764004245661,-659.0,0.00017465,2]
[394830684,1764004245670,-679.35,0.00017468,2]
[394830686,1764004245689,-500.0,0.00017468,2]
[394830688,1764004245699,-779.09,0.00017481,2]
[394830690,1764004245708,-2715.0,0.00017484,2]
[394830692,1764004245718,-561.0,0.00017484,2]
[394830693,1764004245727,-6499.0,0.00017484,2]
[394830694,1764004245737,-150.0,0.000175,2]
[394830695,1764004245747,-313.36840556,0.000175,2]
[394830696,1764004245757,-150.0,0.00017509,2]
[394830698,1764004245766,-150.0,0.00017509,2]
[394830700,1764004245776,-150.0,0.00017509,2]
[394830702,1764004245785,-2306.64782812,0.00017541,2]
[394830704,1764004245795,-2896.93608304,0.00017541,2]
[394830706,1764004245805,-150.0,0.0001755,2]
[394830708,1764004245815,-150.0,0.0001755,2]
[394830710,1764004245825,-150.0,0.00017591,2]
[394830712,1764004245835,-150.0,0.000176,2]
[394830715,1764004245844,-1484.67956702,0.00017604,2]
[394830717,1764004245854,-150.0,0.0001764,2]
[394830719,1764004245863,-2000.0,0.00017647,2]
[394830721,1764004245872,-12999.72312782,0.00017656,2]
[394830722,1764004245882,-800.79694795,0.00017669,2]
[394830725,1764004245895,-150.0,0.00017673,2]
[394830726,1764004245905,-150.0,0.00017673,2]
[394830729,1764004245915,-150.0,0.00017673,2]
[394830731,1764004245926,-420.0,0.00017691,2]
[394830733,1764004245936,-600.0,0.00017692,2]
[394830735,1764004245947,-150.0,0.000177,2]
[394830737,1764004245957,-150.0,0.000177,2]
[394830739,1764004245967,-313.36840556,0.000177,2]
[394830741,1764004245977,-575.0,0.00017719,2]
[394830743,1764004245986,-1320.0,0.00017719,2]
[394830745,1764004245996,-3437.0,0.00017719,2]
[394830747,1764004246006,-2306.64782812,0.00017721,2]
[394830749,1764004246016,-2896.93608304,0.00017721,2]
[394830751,1764004246026,-150.0,0.00017755,2]
[394830753,1764004246035,-779.09556391,0.00017755,2]
[394830755,1764004246045,-150.0,0.00017775,2]
[394830757,1764004246054,-217.83804072,0.00017776,2]
[394830759,1764004246063,-1680.0,0.0001778,2]
[394830761,1764004246072,-2000.0,0.000178,2]
[394830763,1764004246082,-150.0,0.000178,2]
[394830765,1764004246091,-1149.43414714,0.00017816,2]
[394830767,1764004246101,-150.0,0.00017836,2]
[394830769,1764004246111,-150.0,0.00017836,2]
[394830772,1764004246120,-150.0,0.00017836,2]
[394830774,1764004246130,-3874.0,0.0001784,2]
[394830776,1764004246142,-150.0,0.0001785,2]
[394830778,1764004246151,-500.0,0.00017856,2]
[394830780,1764004246161,-200.0,0.00017856,2]
[394830782,1764004246170,-168.75138972,0.00017889,2]
[394830784,1764004246179,-800.79694795,0.000179,2]
[394830786,1764004246188,-2351.28250554,0.000179,2]
[394830788,1764004246198,-168.75138972,0.000179,2]
[394830790,1764004246208,-150.0,0.000179,2]
[394830792,1764004246217,-2306.64782812,0.000179,2]
[394830794,1764004246229,-2896.93608304,0.000179,2]
[394830796,1764004246242,-313.36840556,0.000179,2]
[394830798,1764004246251,-266.64368,0.0001791,2]
[394830800,1764004246262,-150.0,0.00017918,2]
[394830802,1764004246271,-3874.0,0.00017927,2]
[394830804,1764004246280,-152.93953339,0.00017949,2]
[394830806,1764004246289,-150.0,0.00017949,2]
[394830808,1764004246299,-150.0,0.00017949,2]
[394830810,1764004246309,-150.0,0.00017949,2]
[394830812,1764004246318,-150.0,0.00017949,2]
[394830814,1764004246328,-150.0,0.00017949,2]
[394830816,1764004246338,-150.50043881,0.00017949,2]
[394830818,1764004246347,-152.26759261,0.00017949,2]
[394830820,1764004246356,-150.0,0.00017949,2]
[394830822,1764004246366,-150.0,0.00017949,2]
[394830824,1764004246375,-500.0,0.00017949,2]
[394830826,1764004246385,-150.0,0.00017949,2]
[394830828,1764004246394,-150.0,0.00017949,2]
[394830830,1764004246403,-150.0,0.00017949,2]
[394830832,1764004246413,-150.0,0.00017949,2]
[394830834,1764004246422,-150.0,0.00017949,2]
[394830836,1764004246432,-150.0,0.00017949,2]
[394830838,1764004246442,-151.91393352,0.00017949,2]
[394830840,1764004246451,-150.0,0.00017949,2]
[394830842,1764004246461,-150.0,0.00017949,2]
[394830844,1764004246470,-150.0,0.00017949,2]
[394830846,1764004246480,-150.0,0.00017949,2]
[394830848,1764004246489,-150.0,0.00017949,2]
[394830851,1764004246499,-150.0,0.00017949,2]
[394830852,1764004246509,-500.0,0.00017949,2]
[394830854,1764004246521,-150.0,0.00017949,2]
[394830856,1764004246530,-150.0,0.00017949,2]
[394830858,1764004246539,-500.0,0.00017949,2]
[394830861,1764004246550,-500.0,0.00017949,2]
[394830863,1764004246560,-150.0,0.00017949,2]
[394830865,1764004246569,-150.0,0.00017949,2]
[394830867,1764004246579,-500.0,0.00017949,2]
[394830869,1764004246588,-150.0,0.00017949,2]
[394830871,1764004246598,-150.0,0.00017949,2]
[394830873,1764004246607,-500.0,0.00017949,2]
[394830875,1764004246617,-150.0,0.00017949,2]
[394830877,1764004246626,-150.0,0.00017949,2]
[394830878,1764004246638,-1866.0,0.00017949,2]
[394830880,1764004246647,-500.0,0.00017949,2]
[394830882,1764004246656,-500.0,0.00017949,2]
[394830884,1764004246665,-500.0,0.00017973,2]
[394830887,1764004246675,-500.0,0.00017973,2]
[394830888,1764004246684,-500.0,0.00017973,2]
[394830891,1764004246693,-500.0,0.00017973,2]
[394830893,1764004246703,-504.9809457,0.00017973,2]
[394830894,1764004246712,-500.0,0.00017973,2]
[394830895,1764004246722,-500.45067972,0.00017973,2]
[394830896,1764004246731,-500.0,0.00017973,2]
[394830897,1764004246741,-502.26767728,0.00017973,2]
[394830898,1764004246750,-500.0,0.00017973,2]
[394830899,1764004246759,-500.0,0.00017973,2]
[394830900,1764004246768,-500.0,0.00017973,2]
[394830901,1764004246777,-500.0,0.00017973,2]
[394830902,1764004246786,-500.0,0.00017973,2]
[394830903,1764004246795,-500.0,0.00017973,2]
[394830904,1764004246804,-500.0,0.00017973,2]
[394830905,1764004246813,-500.0,0.00017973,2]
[394830906,1764004246822,-500.0,0.00017973,2]
[394830907,1764004246831,-175.50700916,0.00017973,2]
[394830908,1764004246840,-231.63969334,0.00017973,2]
[394830909,1764004246849,-291.92069505,0.00017973,2]
[394830910,1764004246858,-500.0,0.00017973,2]
[394830911,1764004246866,-500.0,0.00017973,2]
[394830912,1764004246875,-501.27256296,0.00017973,2]
[394830913,1764004246885,-501.18613092,0.00017973,2]
[394830914,1764004246893,-500.0,0.00017973,2]
[394830915,1764004246902,-500.49832064,0.00017973,2]
[394830916,1764004246911,-609.34893156,0.00017973,2]
[394830917,1764004246920,-500.0,0.00017973,2]
[394830918,1764004246930,-151.0,0.00017997,2]
[394830919,1764004246939,-36625.75578029,0.00017999,2]
[394831064,1764004249080,-150.0,0.00017949,2]
[394831066,1764004249089,-7701.54844701,0.00017999,2]
[394831068,1764004249099,-689.2130458,0.00017999,2]
[394831070,1764004249108,-679.35,0.00017999,2]
[394831071,1764004249117,-679.35,0.00017999,2]
[394831074,1764004249126,-679.35,0.00017999,2]
[394831076,1764004249136,-679.35,0.00017999,2]
[394831078,1764004249145,-679.35,0.00017999,2]
[394831079,1764004249154,-679.35,0.00017999,2]
[394831081,1764004249163,-679.35,0.00017999,2]
[394831083,1764004249172,-679.35,0.00017999,2]
[394831085,1764004249181,-679.35,0.00017999,2]
[394831087,1764004249190,-679.35,0.00017999,2]
[394831089,1764004249199,-679.35,0.00017999,2]
[394831092,1764004249208,-679.35,0.00017999,2]
[394831093,1764004249217,-679.35,0.00017999,2]
[394831095,1764004249227,-679.35,0.00017999,2]
[394831098,1764004249236,-679.35,0.00017999,2]
[394831100,1764004249245,-679.35,0.00017999,2]
[394831102,1764004249255,-679.35,0.00017999,2]
[394831104,1764004249265,-679.35,0.00017999,2]
[394831106,1764004249274,-679.35,0.00017999,2]
[394831108,1764004249283,-679.4138471,0.00017999,2]
[394831109,1764004249292,-500.0,0.00017999,2]
[394831111,1764004249301,-500.0,0.00017999,2]
[394831113,1764004249310,-500.0,0.00017999,2]
[394831115,1764004249319,-500.0,0.00017999,2]
[394831117,1764004249328,-500.0,0.00017999,2]
[394831119,1764004249337,-500.0,0.00017999,2]
[394831122,1764004249346,-500.0,0.00017999,2]
[394831123,1764004249355,-500.0,0.00017999,2]
[394831125,1764004249365,-500.0,0.00017999,2]
[394831127,1764004249375,-500.0,0.00017999,2]
[394831129,1764004249384,-500.0,0.00017999,2]
[394831131,1764004249393,-500.0,0.00017999,2]
[394831133,1764004249403,-570.88588609,0.00017999,2]
[394831146,1764004249517,-150.0,0.00018,2]
[394831148,1764004249527,-150.0,0.00018,2]
[394831150,1764004249536,-150.0,0.00018,2]
[394831152,1764004249546,-150.0,0.00018,2]
[394831154,1764004249558,-150.0,0.00018,2]
[394831156,1764004249567,-150.0,0.00018,2]
[394831158,1764004249576,-150.0,0.00018,2]
[394831160,1764004249585,-150.0,0.00018,2]
[394831162,1764004249595,-150.0,0.00018,2]
[394831164,1764004249604,-150.0,0.00018,2]
[394831166,1764004249615,-9171889.5442502,0.00018,2]
[394831168,1764004249623,-1000.0,0.00018,2]
[394831170,1764004249632,-1000.0,0.00018,2]
[394831172,1764004249643,-305.471,0.00018,2]
[394831174,1764004249652,-300.0,0.00018,2]
[394831176,1764004249661,-14787066.70453262,0.00018,2]
[394831178,1764004249671,-1181.96310786,0.00018,2]
[394831180,1764004249681,-200.0,0.00018,2]
[394831182,1764004249690,-155.093405,0.00018,2]
[394831184,1764004249699,-151.730275,0.00018,2]
[394831186,1764004249708,-152.989865,0.00018,2]
[394831188,1764004249717,-230.587346,0.00018,2]
[394831190,1764004249727,-230.587346,0.00018,2]
[394831192,1764004249736,-230.587346,0.00018,2]
[394831194,1764004249747,-230.587346,0.00018,2]
[394831196,1764004249756,-151.0,0.00018,2]
[394831198,1764004249765,-151.0,0.00018,2]
[394831200,1764004249775,-151.0,0.00018,2]
[394831202,1764004249784,-266.64368,0.00018,2]
[394831204,1764004249794,-266.64368,0.00018,2]
[394831206,1764004249803,-152.019982,0.00018,2]
[394831208,1764004249812,-151.0,0.00018,2]
[394831210,1764004249824,-151.0,0.00018,2]
[394831212,1764004249834,-1605.293375,0.00018,2]
[394831214,1764004249843,-1605.293375,0.00018,2]
[394831216,1764004249853,-1605.293375,0.00018,2]
[394831218,1764004249863,-1605.293375,0.00018,2]
[394831220,1764004249873,-1008.0,0.0001803,2]
[394831222,1764004249883,-427.0,0.00018032,2]
[394831224,1764004249894,-266.64368,0.0001804,2]
[394831226,1764004249903,-1008.0,0.00018073,2]
[394831228,1764004249912,-1008.0,0.00018076,2]
[394831230,1764004249922,-828.44,0.00018082,2]
[394831232,1764004249931,-152.06180931,0.00018086,2]
[394831234,1764004249941,-261.38569925,0.00018086,2]
[394831236,1764004249950,-202.40106133,0.00018086,2]
[394831238,1764004249960,-150.0,0.00018086,2]
[394831241,1764004249969,-150.0,0.00018086,2]
[394831243,1764004249979,-150.0,0.00018086,2]
[394831244,1764004249988,-500.0,0.00018086,2]
[394831247,1764004249997,-150.0,0.00018086,2]
[394831249,1764004250007,-150.0,0.00018086,2]
[394831250,1764004250016,-150.0,0.00018086,2]
[394831252,1764004250025,-166.08476855,0.00018086,2]
[394831254,1764004250035,-150.0,0.00018086,2]
[394831256,1764004250044,-150.0,0.00018086,2]
[394831258,1764004250053,-150.0,0.00018086,2]
[394831261,1764004250063,-150.0,0.00018086,2]
[394831263,1764004250072,-150.0,0.00018086,2]
[394831265,1764004250081,-150.0,0.00018086,2]
[394831267,1764004250090,-500.0,0.00018086,2]
[394831268,1764004250100,-500.0,0.00018086,2]
[394831270,1764004250109,-500.0,0.00018086,2]
[394831272,1764004250118,-200.72643007,0.00018086,2]
[394831274,1764004250127,-220.69951627,0.00018086,2]
[394831276,1764004250136,-500.0,0.00018086,2]
[394831279,1764004250146,-150.0,0.00018086,2]
[394831280,1764004250155,-150.0,0.00018086,2]
[394831282,1764004250164,-500.0,0.00018086,2]
[394831284,1764004250173,-150.0,0.00018086,2]
[394831286,1764004250182,-1866.0,0.00018086,2]
[394831288,1764004250190,-500.0,0.00018086,2]
[394831290,1764004250200,-500.0,0.00018086,2]
[394831292,1764004250209,-1008.0,0.00018096,2]
[394831294,1764004250218,-1766.69182015,0.000181,2]
[394831297,1764004250228,-3874.0,0.00018103,2]
[394831299,1764004250237,-177.64,0.00018137,2]
[394831301,1764004250246,-150.0,0.00018137,2]
[394831303,1764004250255,-150.54,0.00018137,2]
[394831304,1764004250264,-150.0,0.00018137,2]
[394831307,1764004250273,-169.75,0.00018137,2]
[394831309,1764004250283,-152.86,0.00018137,2]
[394831311,1764004250292,-300.0,0.00018137,2]
[394831312,1764004250302,-177.64,0.00018137,2]
[394831314,1764004250311,-1008.0,0.00018143,2]
[394831317,1764004250320,-300.0,0.00018149,2]
[394831318,1764004250329,-266.64369,0.0001816,2]
[394831321,1764004250339,-200.0,0.0001818,2]
[394831323,1764004250348,-2000.0,0.00018195,2]
[394831325,1764004250358,-1008.0,0.00018195,2]
[394831327,1764004250367,-1539.0,0.00018205,2]
[394831328,1764004250376,-1008.0,0.00018207,2]
[394831331,1764004250386,-5888.0,0.00018208,2]
[394831333,1764004250397,-150.0,0.00018223,2]
[394831335,1764004250406,-150.0,0.00018223,2]
[394831337,1764004250415,-209.72429061,0.00018223,2]
[394831339,1764004250424,-205.49297061,0.00018223,2]
[394831341,1764004250433,-150.0,0.00018223,2]
[394831343,1764004250442,-150.0,0.00018223,2]
[394831344,1764004250451,-150.0,0.00018223,2]
[394831346,1764004250461,-203.06316248,0.00018223,2]
[394831348,1764004250470,-250.2494775,0.00018223,2]
[394831350,1764004250479,-250.87363702,0.00018223,2]
[394831352,1764004250488,-150.0,0.00018223,2]
[394831354,1764004250497,-350.0,0.00018223,2]
[394831356,1764004250507,-500.0,0.00018223,2]
[394831358,1764004250519,-500.0,0.00018223,2]
[394831360,1764004250529,-500.0,0.00018223,2]
[394831362,1764004250538,-150.0,0.00018223,2]
[394831364,1764004250548,-202.51727395,0.00018223,2]
[394831366,1764004250559,-500.0,0.00018223,2]
[394831368,1764004250569,-150.0,0.00018223,2]
[394831370,1764004250579,-1866.0,0.00018223,2]
[394831372,1764004250588,-500.0,0.00018223,2]
[394831374,1764004250597,-304.08896971,0.00018223,2]
[394831375,1764004250606,-727.17,0.00018231,2]
[394831377,1764004250615,-1539.0,0.00018249,2]
[394831379,1764004250624,-496.33041365,0.00018273,7]
[394831381,1764004250633,-266.64368,0.0001829,2]
[394831383,1764004250643,-150.0,0.0001836,2]
[394831385,1764004250652,-150.0,0.0001836,2]
[394831387,1764004250661,-150.0,0.0001836,2]
[394831389,1764004250670,-150.0,0.0001836,2]
[394831391,1764004250679,-150.0,0.0001836,2]
[394831393,1764004250688,-203.97817701,0.0001836,2]
[394831395,1764004250697,-500.0,0.0001836,2]
[394831397,1764004250706,-500.0,0.0001836,2]
[394831399,1764004250716,-500.0,0.0001836,2]